fUSD/lending_fUSD_20250714
["ID","MTS","AMOUNT","RATE_DAILY","PERIOD"]
[372141712,1752537071524,-460.0,0.00024136,2]
[372141713,1752537071533,-180.983477,0.00024136,7]
[372141714,1752537071543,-460.0,0.00024136,2]
[372141715,1752537071553,-151.0,0.00024136,7]
[372141716,1752537071562,-3033.28,0.00024136,2]
[372141717,1752537071572,-1942.77,0.00024136,2]
[372141718,1752537071582,-460.0,0.00024136,2]
[372141719,1752537071591,-171.81539,0.00024136,7]
[372141720,1752537071601,-1370.25,0.00024136,2]
[372141721,1752537071610,-1370.25,0.00024136,2]
[372141722,1752537071620,-1370.25,0.00024136,2]
[372141723,1752537071631,-1370.25,0.00024136,2]
[372141724,1752537071642,-1370.25,0.00024136,2]
[372141725,1752537071651,-1370.25,0.00024136,2]
[372141726,1752537071661,-1370.25,0.00024136,2]
[372141727,1752537071671,-500.0,0.00024136,2]
[372141728,1752537071681,-500.0,0.00024136,2]
[372141729,1752537071690,-500.0,0.00024136,2]
[372141730,1752537071819,-500.0,0.00024136,2]
[372141731,1752537071830,-500.0,0.00024136,2]
[372141732,1752537071840,-250.04,0.00024136,2]
[372141733,1752537071850,-460.0,0.00024136,2]
[372141734,1752537071860,-460.0,0.00024136,2]
[372141735,1752537071869,-851.76,0.00024136,2]
[372141736,1752537071879,-1720.47,0.00024136,2]
[372141737,1752537071888,-151.0,0.00024136,7]
[372141738,1752537071898,-1684.17,0.00024136,2]
[372141739,1752537071908,-460.0,0.00024136,2]
[372141740,1752537071918,-876.25,0.00024136,2]
[372141741,1752537071928,-514.27057587,0.00024136,2]
[372141742,1752537071937,-460.0,0.00024136,2]
[372141743,1752537071947,-460.0,0.00024136,2]
[372141744,1752537071957,-460.0,0.00024136,2]
[372141745,1752537071967,-460.0,0.00024136,2]
[372141746,1752537071976,-460.0,0.00024136,2]
[372141747,1752537071986,-151.0,0.00024136,7]
[372141748,1752537071995,-500.0,0.00024136,2]
[372141749,1752537072005,-460.0,0.00024136,2]
[372141750,1752537072015,-500.0,0.00024136,2]
[372141751,1752537072024,-500.0,0.00024136,2]
[372141752,1752537072034,-460.0,0.00024136,2]
[372141753,1752537072043,-500.0,0.00024136,2]
[372141754,1752537072053,-500.0,0.00024136,2]
[372141755,1752537072063,-500.0,0.00024136,2]
[372141756,1752537072072,-151.0,0.00024136,7]
[372141757,1752537072082,-460.0,0.00024136,2]
[372141758,1752537072092,-460.0,0.00024136,2]
[372141759,1752537072102,-1792.38,0.00024136,2]
[372141760,1752537072111,-500.0,0.00024136,2]
[372141761,1752537072121,-500.0,0.00024136,2]
[372141762,1752537072131,-500.0,0.00024136,2]
[372141763,1752537072141,-460.0,0.00024136,2]
[372141764,1752537072151,-500.0,0.00024136,2]
[372141765,1752537072161,-500.0,0.00024136,2]
[372141766,1752537072171,-500.0,0.00024136,2]
[372141767,1752537072180,-460.0,0.00024136,2]
[372141768,1752537072190,-698.0,0.00024136,2]
[372141769,1752537072200,-706.03,0.00024136,2]
[372141770,1752537072210,-937.51,0.00024136,2]
[372141771,1752537072220,-159.096742,0.00024136,7]
[372141772,1752537072229,-897.32,0.00024136,2]
[372141773,1752537072239,-159.096742,0.00024136,7]
[372141774,1752537072249,-504.14,0.00024136,2]
[372141775,1752537072258,-1527.1,0.00024136,2]
[372141776,1752537072268,-5668.7,0.00024136,2]
[372141777,1752537072277,-5668.7,0.00024136,2]
[372141778,1752537072290,-5668.7,0.00024136,2]
[372141779,1752537072300,-5668.7,0.00024136,2]
[372141780,1752537072309,-5668.7,0.00024136,2]
[372141781,1752537072319,-5668.7,0.00024136,2]
[372141782,1752537072328,-5668.7,0.00024136,2]
[372141783,1752537072338,-5668.7,0.00024136,2]
[372141784,1752537072347,-210.63058707,0.00024136,7]
[372141785,1752537072357,-1116.94,0.00024136,2]
[372141786,1752537072367,-324.570322,0.00024136,7]
[372141787,1752537072377,-460.0,0.00024136,2]
[372141788,1752537072387,-324.570322,0.00024136,7]
[372141789,1752537072397,-841.15,0.00024136,2]
[372141790,1752537072406,-733.62,0.00024136,2]
[372141791,1752537072416,-1556.77,0.00024136,2]
[372141792,1752537072425,-460.0,0.00024136,2]
[372141793,1752537072435,-151.0,0.00024136,7]
[372141794,1752537072445,-460.0,0.00024136,2]
[372141795,1752537072455,-156.439274,0.00024136,7]
[372141796,1752537072464,-682.41,0.00024136,2]
[372141797,1752537072473,-724.12,0.00024136,2]
[372141798,1752537072483,-460.0,0.00024136,2]
[372141799,1752537072498,-664.04,0.00024136,2]
[372141800,1752537072509,-603.78,0.00024136,2]
[372141801,1752537072520,-1646.43,0.00024136,2]
[372141802,1752537072530,-968.02,0.00024136,2]
[372141803,1752537072540,-968.02,0.00024136,2]
[372141804,1752537072551,-968.02,0.00024136,2]
[372141805,1752537072562,-968.02,0.00024136,2]
[372141806,1752537072571,-968.02,0.00024136,2]
[372141807,1752537072581,-968.02,0.00024136,2]
[372141808,1752537072591,-968.02,0.00024136,2]
[372141809,1752537072600,-500.0,0.00024136,2]
[372141810,1752537072610,-460.0,0.00024136,2]
[372141811,1752537072620,-400.20364331,0.00024136,7]
[372141812,1752537072629,-460.0,0.00024136,2]
[372141813,1752537072639,-1307.63,0.00024136,2]
[372141814,1752537072649,-646.09,0.00024136,2]
[372141815,1752537072659,-988.96,0.00024136,2]
[372141816,1752537072668,-151.0,0.00024136,7]
[372141817,1752537072678,-790.41,0.00024136,2]
[372141818,1752537072687,-151.0,0.00024136,7]
[372141819,1752537072697,-460.0,0.00024136,2]
[372141820,1752537072707,-3083.42,0.00024136,2]
[372141821,1752537072716,-460.0,0.00024136,2]
[372141822,1752537072725,-1567.32,0.00024136,2]
[372141823,1752537072735,-460.0,0.00024136,2]
[372141824,1752537072745,-460.0,0.00024136,2]
[372141825,1752537072755,-995.84,0.00024136,2]
[372141826,1752537072764,-460.0,0.00024136,2]
[372141827,1752537072774,-460.0,0.00024136,2]
[372141828,1752537072783,-1383.11,0.00024136,2]
[372141829,1752537072793,-460.0,0.00024136,2]
[372141830,1752537072802,-1134.71,0.00024136,2]
[372141831,1752537072812,-986.26,0.00024136,2]
[372141832,1752537072822,-3033.37,0.00024136,2]
[372141833,1752537072831,-460.0,0.00024136,2]
[372141834,1752537072841,-353.37378263,0.00024136,2]
[372141835,1752537072851,-660.52,0.00024136,2]
[372141836,1752537072860,-460.0,0.00024136,2]
[372141837,1752537072870,-460.0,0.00024136,2]
[372141838,1752537072880,-151.0,0.00024136,7]
[372141839,1752537072889,-460.0,0.00024136,2]
[372141840,1752537072899,-460.0,0.00024136,2]
[372141841,1752537072916,-460.0,0.00024136,2]
[372141842,1752537072926,-460.0,0.00024136,2]
[372141843,1752537072935,-460.0,0.00024136,2]
[372141844,1752537072945,-1129.14,0.00024136,2]
[372141845,1752537072954,-460.0,0.00024136,2]
[372141846,1752537072963,-460.0,0.00024136,2]
[372141847,1752537072972,-460.4,0.00024136,2]
[372141848,1752537072982,-377.289585,0.00024136,7]
[372141849,1752537072991,-377.289585,0.00024136,7]
[372141850,1752537073001,-1473.69,0.00024136,2]
[372141851,1752537073010,-460.0,0.00024136,2]
[372141852,1752537073019,-541.06,0.00024136,2]
[372141853,1752537073029,-558.11,0.00024136,2]
[372141854,1752537073038,-461.02,0.00024136,2]
[372141855,1752537073047,-181.240074,0.00024136,7]
[372141856,1752537073057,-460.0,0.00024136,2]
[372141857,1752537073066,-1515.59,0.00024136,2]
[372141858,1752537073075,-181.240074,0.00024136,7]
[372141859,1752537073084,-662.65,0.00024136,2]
[372141860,1752537073094,-460.0,0.00024136,2]
[372141861,1752537073103,-460.0,0.00024136,2]
[372141862,1752537073112,-518.34,0.00024136,2]
[372141863,1752537073122,-460.0,0.00024136,2]
[372141864,1752537073131,-794.55,0.00024136,2]
[372141865,1752537073140,-464.83841628,0.00024136,2]
[372141866,1752537073150,-2158.66,0.00024136,2]
[372141867,1752537073159,-1448.58,0.00024136,2]
[372141868,1752537073168,-460.0,0.00024136,2]
[372141869,1752537073177,-1212.04,0.00024136,2]
[372141870,1752537073186,-460.0,0.00024136,2]
[372141871,1752537073196,-460.0,0.00024136,2]
[372141872,1752537073206,-932.37,0.00024136,2]
[372141873,1752537073216,-460.0,0.00024136,2]
[372141874,1752537073225,-460.0,0.00024136,2]
[372141875,1752537073234,-460.0,0.00024136,2]
[372141876,1752537073244,-2617.71,0.00024136,2]
[372141877,1752537073253,-994.24,0.00024136,2]
[372141878,1752537073262,-460.0,0.00024136,2]
[372141879,1752537073271,-151.0,0.00024136,7]
[372141880,1752537073281,-460.0,0.00024136,2]
[372141881,1752537073292,-1707.761689,0.00024136,7]
[372141882,1752537073301,-460.0,0.00024136,2]
[372141883,1752537073310,-1707.761689,0.00024136,7]
[372141884,1752537073319,-1009.04,0.00024136,2]
[372141885,1752537073330,-460.0,0.00024136,2]
[372141886,1752537073341,-460.0,0.00024136,2]
[372141887,1752537073350,-460.0,0.00024136,2]
[372141888,1752537073362,-460.0,0.00024136,2]
[372141889,1752537073371,-1300.67,0.00024136,2]
[372141890,1752537073381,-724.51,0.00024136,2]
[372141891,1752537073390,-460.0,0.00024136,2]
[372141892,1752537073400,-460.0,0.00024136,2]
[372141893,1752537073410,-460.0,0.00024136,2]
[372141894,1752537073421,-460.0,0.00024136,2]
[372141895,1752537073430,-460.0,0.00024136,2]
[372141896,1752537073440,-460.0,0.00024136,2]
[372141897,1752537073451,-460.0,0.00024136,2]
[372141898,1752537073460,-629.03,0.00024136,2]
[372141899,1752537073469,-890.57,0.00024136,2]
[372141900,1752537073479,-460.0,0.00024136,2]
[372141901,1752537073488,-151.0,0.00024137,7]
[372141902,1752537073497,-151.0,0.00024137,7]
[372141903,1752537073507,-151.0,0.00024137,7]
[372141904,1752537073516,-151.0,0.00024137,7]
[372141905,1752537073526,-151.0,0.00024137,7]
[372141906,1752537073536,-151.0,0.00024137,7]
[372141907,1752537073545,-151.0,0.00024137,7]
[372141908,1752537073555,-197.522858,0.00024137,7]
[372141909,1752537073564,-197.522858,0.00024137,7]
[372141910,1752537073574,-197.522858,0.00024137,7]
[372141911,1752537073583,-151.0,0.00024137,7]
[372141912,1752537073592,-151.0,0.00024137,7]
[372141913,1752537073602,-151.0,0.00024137,7]
[372141914,1752537073611,-1578.72,0.00024137,2]
[372141915,1752537073621,-197.522858,0.00024137,7]
[372141916,1752537073630,-197.522858,0.00024137,7]
[372141917,1752537073640,-197.522858,0.00024137,7]
[372141918,1752537073649,-557.82,0.00024137,2]
[372141919,1752537073660,-675.5,0.00024137,2]
[372141920,1752537073669,-460.0,0.00024137,2]
[372141921,1752537073678,-688.795143,0.00024137,7]
[372141922,1752537073687,-688.795143,0.00024137,7]
[372141923,1752537073696,-688.795143,0.00024137,7]
[372141924,1752537073706,-243.70867,0.00024137,7]
[372141925,1752537073715,-161.36185,0.00024137,7]
[372141926,1752537073725,-1135.87,0.00024137,2]
[372141927,1752537073734,-243.70867,0.00024137,7]
[372141928,1752537073745,-161.36185,0.00024137,7]
[372141929,1752537073754,-243.70867,0.00024137,7]
[372141930,1752537073763,-161.36185,0.00024137,7]
[372141931,1752537073773,-688.795143,0.00024137,7]
[372141932,1752537073782,-688.795143,0.00024137,7]
[372141933,1752537073791,-688.795143,0.00024137,7]
[372141934,1752537073801,-161.36185,0.00024137,7]
[372141935,1752537073811,-243.70867,0.00024137,7]
[372141936,1752537073820,-161.36185,0.00024137,7]
[372141937,1752537073830,-161.36185,0.00024137,7]
[372141938,1752537073840,-243.70867,0.00024137,7]
[372141939,1752537073849,-243.70867,0.00024137,7]
[372141940,1752537073859,-460.0,0.00024137,2]
[372141941,1752537073869,-1564.82,0.00024137,2]
[372141942,1752537073879,-549.27,0.00024137,2]
[372141943,1752537073889,-1191.84,0.00024137,2]
[372141944,1752537073898,-460.0,0.00024137,2]
[372141945,1752537073908,-460.0,0.00024137,2]
[372141946,1752537073917,-151.0,0.00024137,7]
[372141947,1752537073927,-151.0,0.00024137,7]
[372141948,1752537073936,-1589.09,0.00024137,2]
[372141949,1752537073945,-151.0,0.00024137,7]
[372141950,1752537073955,-151.0,0.00024137,7]
[372141951,1752537073964,-460.0,0.00024137,2]
[372141952,1752537073974,-477.1,0.00024137,2]
[372141953,1752537073984,-1897.51,0.00024137,2]
[372141954,1752537073994,-460.0,0.00024137,2]
[372141955,1752537074004,-460.0,0.00024137,2]
[372141956,1752537074014,-788.49,0.00024137,2]
[372141957,1752537074025,-460.0,0.00024137,2]
[372141958,1752537074034,-205.97126376,0.00024137,2]
[372141959,1752537074044,-460.0,0.00024137,2]
[372141960,1752537074053,-486.05,0.00024137,2]
[372141961,1752537074062,-460.0,0.00024137,2]
[372141962,1752537074071,-460.0,0.00024137,2]
[372141963,1752537074080,-460.0,0.00024137,2]
[372141964,1752537074091,-1241.301607,0.00024137,7]
[372141965,1752537074100,-1241.301607,0.00024137,7]
[372141966,1752537074110,-1241.301607,0.00024137,7]
[372141967,1752537074121,-1241.301607,0.00024137,7]
[372141968,1752537074131,-1241.301607,0.00024137,7]
[372141969,1752537074141,-460.0,0.00024137,2]
[372141970,1752537074151,-1241.301607,0.00024137,7]
[372141971,1752537074160,-460.0,0.00024137,2]
[372141972,1752537074172,-460.0,0.00024137,2]
[372141973,1752537074183,-599.85,0.00024137,2]
[372141974,1752537074195,-1217.25,0.00024137,2]
[372141975,1752537074207,-460.0,0.00024137,2]
[372141976,1752537074217,-460.0,0.00024137,2]
[372141977,1752537074226,-1136.02,0.00024137,2]
[372141978,1752537074235,-460.0,0.00024137,2]
[372141979,1752537074244,-460.0,0.00024137,2]
[372141980,1752537074253,-234.883779,0.00024137,7]
[372141981,1752537074263,-234.883779,0.00024137,7]
[372141982,1752537074272,-234.883779,0.00024137,7]
[372141983,1752537074287,-234.883779,0.00024137,7]
[372141984,1752537074298,-234.883779,0.00024137,7]
[372141985,1752537074308,-234.883779,0.00024137,7]
[372141986,1752537074319,-1853.78,0.00024137,2]
[372141987,1752537074338,-2663.56,0.00024137,2]
[372141988,1752537074357,-3460.87,0.00024137,2]
[372141989,1752537074367,-237.9189298,0.00024137,2]
[372141990,1752537074377,-796.86,0.00024137,2]
[372141991,1752537074387,-4469.35,0.00024137,2]
[372141992,1752537074398,-460.0,0.00024137,2]
[372141993,1752537074408,-2823.07,0.00024137,2]
[372141994,1752537074418,-464.74,0.00024137,2]
[372141995,1752537074428,-264.623478,0.00024137,7]
[372141996,1752537074438,-264.623478,0.00024137,7]
[372141997,1752537074448,-264.623478,0.00024137,7]
[372141998,1752537074458,-264.623478,0.00024137,7]
[372141999,1752537074467,-264.623478,0.00024137,7]
[372142000,1752537074476,-264.623478,0.00024137,7]
[372142001,1752537074486,-460.0,0.00024137,2]
[372142002,1752537074495,-151.0,0.00024137,7]
[372142003,1752537074505,-151.0,0.00024137,7]
[372142004,1752537074515,-151.0,0.00024137,7]
[372142005,1752537074524,-151.0,0.00024137,7]
[372142006,1752537074534,-2261.26,0.00024137,2]
[372142007,1752537074543,-460.0,0.00024137,2]
[372142008,1752537074553,-460.0,0.00024137,2]
[372142009,1752537074563,-678.73,0.00024137,2]
[372142010,1752537074572,-1317.19,0.00024137,2]
[372142011,1752537074583,-631.02,0.00024137,2]
[372142012,1752537074592,-1984.89,0.00024137,2]
[372142013,1752537074602,-4473.51,0.00024137,2]
[372142014,1752537074611,-539.87,0.00024137,2]
[372142015,1752537074621,-2642.94,0.00024137,2]
[372142016,1752537074630,-1111.0,0.00024137,2]
[372142017,1752537074640,-4023.02,0.00024137,2]
[372142018,1752537074649,-2455.93,0.00024137,2]
[372142019,1752537074659,-1323.36,0.00024137,2]
[372142020,1752537074668,-1557.99,0.00024137,2]
[372142021,1752537074678,-1104.11,0.00024137,2]
[372142022,1752537074687,-460.0,0.00024137,2]
[372142023,1752537074696,-1594.21,0.00024137,2]
[372142024,1752537074706,-707.57,0.00024137,2]
[372142025,1752537074715,-3830.47,0.00024137,2]
[372142026,1752537074725,-460.0,0.00024137,2]
[372142027,1752537074735,-460.0,0.00024137,2]
[372142028,1752537074744,-3555.58,0.00024137,2]
[372142029,1752537074754,-460.0,0.00024137,2]
[372142030,1752537074763,-282.981937,0.00024137,7]
[372142031,1752537074773,-282.981937,0.00024137,7]
[372142032,1752537074782,-282.981937,0.00024137,7]
[372142033,1752537074792,-460.0,0.00024137,2]
[372142034,1752537074801,-282.981937,0.00024137,7]
[372142035,1752537074811,-282.981937,0.00024137,7]
[372142036,1752537074820,-282.981937,0.00024137,7]
[372142037,1752537074831,-460.0,0.00024137,2]
[372142038,1752537074840,-1751.66,0.00024137,2]
[372142039,1752537074850,-523.72,0.00024137,2]
[372142040,1752537074860,-151.0,0.00024137,7]
[372142041,1752537074869,-3426.3,0.00024137,2]
[372142042,1752537074878,-3222.179864,0.00024137,7]
[372142043,1752537074888,-1429.05,0.00024137,2]
[372142044,1752537074898,-3222.179864,0.00024137,7]
[372142045,1752537074909,-600.0,0.00024137,2]
[372142046,1752537074919,-2299.11,0.00024137,2]
[372142047,1752537074930,-797.08,0.00024137,2]
[372142048,1752537074941,-1010.26,0.00024137,2]
[372142049,1752537074950,-2109.71,0.00024137,2]
[372142050,1752537074960,-501.66298684,0.00024137,2]
[372142051,1752537074969,-1624.11,0.00024137,2]
[372142052,1752537074979,-3319.88,0.00024137,2]
[372142053,1752537074989,-346.091447,0.00024137,7]
[372142054,1752537074998,-2073.83,0.00024137,2]
[372142055,1752537075008,-346.091447,0.00024137,7]
[372142056,1752537075017,-1627.529878,0.00024137,7]
[372142057,1752537075026,-1627.529878,0.00024137,7]
[372142058,1752537075036,-500.0,0.00024137,2]
[372142059,1752537075045,-2063.96,0.00024137,2]
[372142060,1752537075054,-1339.2,0.00024137,2]
[372142061,1752537075063,-733.99,0.00024137,2]
[372142062,1752537075073,-460.0,0.00024137,2]
[372142063,1752537075083,-151.0,0.00024137,7]
[372142064,1752537075092,-180.983477,0.00024137,7]
[372142065,1752537075101,-180.983477,0.00024137,7]
[372142066,1752537075110,-151.0,0.00024137,7]
[372142067,1752537075120,-151.0,0.00024137,7]
[372142068,1752537075130,-159.096742,0.00024137,7]
[372142069,1752537075139,-159.096742,0.00024137,7]
[372142070,1752537075149,-160.749897,0.00024137,7]
[372142071,1752537075158,-160.749897,0.00024137,7]
[372142072,1752537075169,-1707.761689,0.00024137,7]
[372142073,1752537075179,-1707.761689,0.00024137,7]
[372142074,1752537075190,-497.39873491,0.00024138,2]
[372142075,1752537075200,-207.91126195,0.0002415,10]
[372142076,1752537075210,-157.45245213,0.00024158,2]
[372142077,1752537075220,-497.39873491,0.00024168,2]
[372142078,1752537075230,-151.30222814,0.00024169,2]
[372142079,1752537075239,-236.00426889,0.00024169,2]
[372142080,1752537075249,-500.0,0.00024173,2]
[372142081,1752537075258,-500.0,0.00024173,2]
[372142082,1752537075267,-500.000001,0.00024173,2]
[372142083,1752537075277,-500.0,0.00024173,2]
[372142084,1752537075294,-500.0,0.00024173,2]
[372142085,1752537075303,-500.0,0.00024173,2]
[372142086,1752537075312,-500.0,0.00024173,2]
[372142087,1752537075322,-305.78041934,0.00024173,2]
[372142088,1752537075334,-500.0,0.00024173,2]
[372142089,1752537075343,-500.0,0.00024173,2]
[372142090,1752537075353,-501.24281654,0.00024173,2]
[372142091,1752537075367,-500.0,0.00024173,2]
[372142092,1752537075377,-500.0,0.00024173,2]
[372142093,1752537075387,-500.0,0.00024173,2]
[372142094,1752537075396,-159.54353515,0.00024173,2]
[372142095,1752537075407,-498.98394129,0.00024173,2]
[372142096,1752537075417,-500.0,0.00024173,2]
[372142097,1752537075428,-159.54023207,0.00024173,2]
[372142098,1752537075439,-497.31301968,0.00024173,2]
[372142099,1752537075450,-159.55866325,0.00024173,2]
[372142100,1752537075460,-500.0,0.00024173,2]
[372142101,1752537075471,-501.08964939,0.00024173,2]
[372142102,1752537075481,-154.42231607,0.00024173,2]
[372142103,1752537075491,-500.0,0.00024173,2]
[372142104,1752537075500,-500.0,0.00024173,2]
[372142105,1752537075511,-500.0,0.00024173,2]
[372142106,1752537075520,-500.0,0.00024173,2]
[372142107,1752537075530,-500.0,0.00024173,2]
[372142108,1752537075539,-500.0,0.00024173,2]
[372142109,1752537075549,-502.34624236,0.00024173,2]
[372142110,1752537075559,-500.0,0.00024173,2]
[372142111,1752537075571,-500.0,0.00024173,2]
[372142112,1752537075581,-500.0,0.00024173,2]
[372142113,1752537075591,-168.84524817,0.00024173,2]
[372142114,1752537075600,-500.0,0.00024173,2]
[372142115,1752537075609,-158.42240996,0.00024173,2]
[372142116,1752537075619,-207.92273688,0.00024173,2]
[372142117,1752537075628,-500.0,0.00024173,2]
[372142118,1752537075638,-356.5,0.00024192,2]
[372142119,1752537075648,-150.0,0.00024192,2]
[372142120,1752537075658,-972.01713878,0.00024195,2]
[372142121,1752537075668,-2021.79943308,0.00024218,7]
[372142122,1752537075677,-18714.0,0.00024219,2]
[372142123,1752537075687,-529.00676546,0.00024238,3]
[372142124,1752537075696,-70048.0,0.00024247,2]
[372142125,1752537075706,-151.0,0.00024247,7]
[372142126,1752537075715,-151.0,0.00024247,7]
[372142127,1752537075725,-377.289585,0.00024247,7]
[372142128,1752537075734,-377.289585,0.00024247,7]
[372142129,1752537075744,-8271.33,0.0002425,2]
[372142130,1752537075755,-151.30222814,0.0002426,2]
[372142131,1752537075765,-500.0,0.00024264,2]
[372142132,1752537075775,-500.0,0.00024264,2]
[372142133,1752537075785,-500.0,0.00024264,2]
[372142134,1752537075796,-151.0,0.00024265,7]
[372142135,1752537075806,-242.888678,0.00024265,7]
[372142136,1752537075816,-151.0,0.00024265,7]
[372142137,1752537075826,-151.0,0.00024265,7]
[372142138,1752537075836,-460.0,0.00024267,2]
[372142139,1752537075846,-644.54,0.00024267,2]
[372142140,1752537075856,-460.0,0.00024267,2]
[372142141,1752537075867,-841.75,0.00024267,2]
[372142142,1752537075877,-542.27,0.00024267,2]
[372142143,1752537075887,-519.68,0.00024267,2]
[372142144,1752537075897,-3059.88,0.00024267,2]
[372142145,1752537075907,-2894.86,0.00024267,2]
[372142146,1752537075915,-9955.13,0.00024267,2]
[372142147,1752537075925,-6532.84,0.00024267,2]
[372142148,1752537075935,-5780.99,0.00024267,2]
[372142149,1752537075944,-679.82,0.00024267,2]
[372142150,1752537075954,-460.0,0.00024267,2]
[372142151,1752537075964,-1448.61,0.00024267,2]
[372142152,1752537075974,-966.48,0.00024267,2]
[372142153,1752537075983,-6555.74,0.00024267,2]
[372142154,1752537075992,-813.08,0.00024267,2]
[372142155,1752537076002,-460.0,0.00024267,2]
[372142156,1752537076012,-3205.14,0.00024267,2]
[372142157,1752537076022,-7686.63,0.00024267,2]
[372142158,1752537076031,-1230.68,0.00024267,2]
[372142159,1752537076041,-4978.48,0.00024267,2]
[372142160,1752537076051,-5699.08,0.00024267,2]
[372142161,1752537076061,-460.0,0.00024267,2]
[372142162,1752537076070,-1243.82,0.00024267,2]
[372142163,1752537076080,-6153.77,0.00024267,2]
[372142164,1752537076090,-460.0,0.00024267,2]
[372142165,1752537076100,-460.0,0.00024267,2]
[372142166,1752537076110,-630.38,0.00024267,2]
[372142167,1752537076119,-2133.34,0.00024267,2]
[372142168,1752537076129,-920.5,0.00024267,2]
[372142169,1752537076140,-6924.81,0.00024267,2]
[372142170,1752537076149,-737.72,0.00024267,2]
[372142171,1752537076161,-460.0,0.00024267,2]
[372142172,1752537076171,-460.0,0.00024267,2]
[372142173,1752537076181,-460.0,0.00024268,2]
[372142174,1752537076191,-460.0,0.00024268,2]
[372142175,1752537076201,-460.0,0.00024268,2]
[372142176,1752537076211,-1451.34,0.00024268,2]
[372142177,1752537076220,-668.33,0.00024268,2]
[372142178,1752537076230,-530.58,0.00024268,2]
[372142179,1752537076240,-460.0,0.00024268,2]
[372142180,1752537076249,-1058.65,0.00024268,2]
[372142181,1752537076260,-460.28,0.00024268,2]
[372142182,1752537076269,-460.0,0.00024268,2]
[372142183,1752537076279,-460.0,0.00024268,2]
[372142184,1752537076293,-460.0,0.00024268,2]
[372142185,1752537076303,-494.02430119,0.00024268,2]
[372142186,1752537076313,-723.3,0.00024268,2]
[372142187,1752537076323,-812.64,0.00024268,2]
[372142188,1752537076333,-460.0,0.00024268,2]
[372142189,1752537076342,-908.52,0.00024268,2]
[372142190,1752537076352,-345.4623966,0.00024268,2]
[372142191,1752537076361,-460.0,0.00024268,2]
[372142192,1752537076373,-460.0,0.00024268,2]
[372142193,1752537076382,-590.32,0.00024268,2]
[372142194,1752537076392,-460.0,0.00024268,2]
[372142195,1752537076401,-1196.01,0.00024268,2]
[372142196,1752537076412,-460.0,0.00024268,2]
[372142197,1752537076422,-460.0,0.00024268,2]
[372142198,1752537076432,-1618.41,0.00024268,2]
[372142199,1752537076449,-939.19,0.00024268,2]
[372142200,1752537076470,-460.0,0.00024268,2]
[372142201,1752537076480,-883.06,0.00024268,2]
[372142202,1752537076490,-460.0,0.00024268,2]
[372142203,1752537076500,-11694.35240377,0.00024268,2]
[372142204,1752537077785,-1098.82759623,0.00024268,2]
[372142205,1752537077795,-29.8455282,0.00024268,2]
[372142206,1752537077808,-430.1544718,0.00024268,2]
[372142207,1752537077818,-460.0,0.00024268,2]
[372142208,1752537077828,-135.88217721,0.00024268,2]
[372142209,1752537080207,-456.68997,0.00023992,2]
[372142223,1752537166807,4646.03354166,0.00030137,120]
[372142224,1752537404904,168.06,0.00028717,120]